bitfinex/quotes_ETHUSD_20250804
["timestamp","ask_amount","ask_price","bid_price","bid_amount"]
[1754346160679,1e-08,3726.8,3726.7,2.68333914]
[1754346160888,1e-08,3726.8,3726.7,7.67102857]
[1754346161093,1e-08,3726.8,3726.7,8.72652857]
[1754346162179,1e-08,3726.8,3726.7,8.27112857]
[1754346162428,1e-08,3726.8,3726.7,3.65362857]
[1754346162818,1e-08,3726.8,3726.7,4.57552857]
[1754346163122,1e-08,3726.8,3726.7,4.59555103]
[1754346163323,1e-08,3726.8,3726.7,8.74555103]
[1754346163518,1e-08,3726.8,3726.7,8.72552857]
[1754346163876,1e-08,3727.2,3727.1,2.68305116]
[1754346164081,1e-08,3727.2,3727.1,8.3215966]
[1754346164303,1e-08,3727.2,3727.1,8.6934966]
[1754346165704,1e-08,3727.2,3727.1,11.6934966]
[1754346166495,1e-08,3727.2,3727.1,6.6215966]
[1754346167999,1e-08,3727.2,3727.1,10.7715966]
[1754346168209,1e-08,3727.2,3727.1,6.96665116]
[1754346168829,1e-08,3727.2,3727.1,2.81665116]
[1754346169437,1e-08,3727.2,3727.1,3.28375116]
[1754346169583,1e-08,3727.2,3727.1,2.81665116]
[1754346169783,1e-08,3727.2,3727.1,4.81905818]
[1754346169979,1e-08,3727.2,3727.1,5.28617344]
[1754346170283,1e-08,3727.2,3727.1,12.43517344]
[1754346170509,1e-08,3727.2,3727.1,12.41515818]
[1754346171083,1e-08,3727.2,3727.1,2.81665116]
[1754346171996,1e-08,3727.2,3727.1,3.75086642]
[1754346172993,1e-08,3727.2,3727.1,3.73085116]
[1754346173150,1e-08,3727.2,3727.1,3.28375116]
[1754346173444,1e-08,3727.2,3727.1,7.87985116]
[1754346173615,1e-08,3727.2,3727.1,9.5044766]
[1754346174604,1e-08,3727.2,3727.1,12.5044766]
[1754346175216,1e-08,3727.2,3727.1,4.4412766]
[1754346175504,1e-08,3727.2,3727.1,2.81665116]
[1754346179364,1e-08,3727.2,3727.1,2.83666642]
[1754346179950,1e-08,3727.2,3727.1,3.30376642]
[1754346180772,1e-08,3727.2,3727.1,3.28375116]
[1754346180976,1e-08,3727.2,3727.1,2.81665116]
[1754346181345,1e-08,3727.2,3727.1,2.83666642]
[1754346181541,1e-08,3727.2,3727.1,4.53897339]
[1754346181758,1e-08,3727.2,3727.1,4.98607339]
[1754346181961,1e-08,3727.2,3727.1,4.05185813]
[1754346182130,1e-08,3727.2,3727.1,2.83666642]
[1754346182531,1e-08,3727.2,3727.1,2.81665116]
[1754346183000,0.48460001,3727.2,3727.1,2.81665116]
[1754346183186,1e-08,3727.2,3727.1,2.81665116]
[1754346183479,0.92870001,3727.2,3726.8,2.68321178]
[1754346183682,0.9287,3727.1,3726.5,2.68341436]
[1754346183863,2.68298615,3727.2,3726.3,0.001]
[1754346183864,0.1336,3726.5,3726.3,0.001]
[1754346184038,4.148,3726.6,3726.3,0.001]
[1754346184372,0.9287,3726.4,3726.3,0.001]
[1754346184572,6.61225517,3726.4,3726.3,0.001]
[1754346184729,7.16225517,3726.4,3726.3,0.001]
[1754346184930,9.20592767,3726.4,3726.3,0.001]
[1754346188484,9.45660324,3726.4,3726.3,0.001]
[1754346188987,9.45660365,3726.4,3726.3,0.001]
[1754346189199,9.20592767,3726.4,3726.3,0.001]
[1754346189389,8.65592767,3726.4,3726.3,0.001]
[1754346189588,5.5282725,3726.4,3726.3,0.001]
[1754346189793,5.77878695,3726.4,3726.3,0.001]
[1754346189997,8.46234212,3726.4,3726.3,0.001]
[1754346190181,5.5282725,3726.4,3726.3,0.001]
[1754346190915,8.90630799,3726.4,3726.3,0.001]
[1754346191489,9.45630799,3726.4,3726.3,0.001]
[1754346194118,9.01220799,3726.4,3726.3,0.001]
[1754346194306,9.45630799,3726.4,3726.3,0.001]
[1754346194614,13.60630799,3726.4,3726.3,0.001]
[1754346195731,9.1936725,3726.4,3726.3,0.001]
[1754346195943,6.443,3726.7,3726.3,0.001]
[1754346196238,4.2836,3726.4,3726.3,0.4681]
[1754346196440,6.96715517,3726.4,3726.3,0.001]
[1754346196809,7.46435517,3726.4,3726.3,0.001]
[1754346197004,4.2836,3726.4,3726.3,0.001]
[1754346198341,6.96715517,3726.4,3726.3,0.001]
[1754346198637,4.2836,3726.4,3726.3,0.001]
[1754346198940,4.2836,3726.4,3726.3,0.9289]
[1754346199311,4.2836,3726.4,3726.3,0.001]
[1754346200014,4.2836,3726.4,3726.3,0.457]
[1754346200821,4.2836,3726.4,3726.3,0.001]
[1754346206264,0.1336,3726.4,3726.3,0.457]
[1754346206563,1e-08,3727.2,3727.1,2.68305116]
[1754346206745,4.14900001,3727.2,3727.1,3.87925628]
[1754346206917,0.25015262,3727.2,3727.1,3.87925628]
[1754346207287,1e-08,3727.2,3727.1,3.89927154]
[1754346207564,0.1356,3727.6,3727.1,3.89927154]
[1754346207565,0.002,3727.6,3727.5,2.68276324]
[1754346207854,1e-08,3728.0,3727.9,2.68247538]
[1754346208015,1e-08,3728.0,3727.9,3.63037625]
[1754346208214,1e-08,3728.0,3727.9,3.76397625]
[1754346208428,1e-08,3728.0,3727.9,6.76397625]
[1754346208626,1e-08,3728.0,3727.9,6.74397538]
[1754346208827,1e-08,3728.0,3727.9,8.5048928]
[1754346212116,0.002,3729.0,3728.5,2.68201203]
[1754346212320,0.002,3729.0,3728.9,2.68175601]
[1754346212556,0.002,3729.0,3728.9,2.81535601]
[1754346212753,0.002,3729.0,3728.9,3.27135601]
[1754346212953,0.002,3729.0,3728.9,2.81535601]
[1754346213126,0.002,3729.0,3728.9,2.68175601]
[1754346213770,0.002,3729.0,3728.9,3.13775601]
[1754346213975,0.002,3729.0,3728.7,0.1336]
[1754346214263,0.6308,3728.9,3728.5,2.6820255]
[1754346214624,0.6308,3728.9,3728.2,0.1336]
[1754346214625,4.147,3728.8,3728.2,0.1336]
[1754346214832,4.147,3728.8,3728.2,2.81583433]
[1754346215054,4.6442,3728.8,3728.2,0.1336]
[1754346215571,0.002,3729.0,3728.2,0.58348153]
[1754346215779,0.002,3729.0,3728.4,2.68211565]
[1754346215924,0.002,3729.0,3728.3,0.456]
[1754346216129,0.002,3729.0,3728.7,2.68183286]
[1754346216437,0.002,3729.0,3728.8,2.68182162]
[1754346216836,0.002,3729.0,3728.3,0.456]
[1754346217036,0.9598,3728.9,3728.4,2.68209299]
[1754346217235,0.4972,3728.8,3728.5,2.68203599]
[1754346217441,0.4169,3729.0,3728.5,2.68203599]
[1754346217758,0.002,3728.9,3728.5,2.68203599]
[1754346217971,0.002,3728.9,3728.0,0.9279]
[1754346217972,1.68654658,3728.9,3728.1,2.68232468]
[1754346218194,4.36830515,3728.9,3728.3,2.6821826]
[1754346218398,1.68654658,3728.9,3728.3,2.6821826]
[1754346218565,1.68654658,3728.9,3727.7,0.456]
[1754346218766,1.68654658,3728.9,3728.3,2.68212936]
[1754346218989,1.68654658,3728.9,3727.8,2.68254734]
[1754346218990,1.68654658,3728.9,3728.5,2.681994]
[1754346219198,1.68654658,3728.9,3728.5,2.68197982]
[1754346219199,0.002,3728.9,3728.5,2.68197982]
[1754346219381,4.6432,3728.8,3728.4,2.6821087]
[1754346219578,0.4972,3728.7,3728.3,2.68217709]
[1754346220057,4.146,3728.8,3728.4,2.6820906]
[1754346221398,0.002,3728.9,3727.9,0.4719]
[1754346221558,4.146,3728.7,3728.3,2.68212763]
[1754346221761,4.146,3728.7,3728.3,2.68214848]
[1754346221967,4.146,3728.7,3728.4,2.68211337]
[1754346222169,4.146,3728.7,3728.5,2.68204182]
[1754346222364,4.146,3728.7,3728.4,2.68209296]
[1754346223380,4.146,3728.7,3728.6,2.68197178]
[1754346223612,4.146,3728.7,3728.5,2.68202641]
[1754346224685,4.146,3728.7,3728.6,2.68197178]
[1754346225093,4.146,3728.7,3728.5,2.68201573]
[1754346225628,0.1336,3728.6,3728.5,2.68201573]
[1754346226578,0.1336,3728.6,3728.5,3.15591573]
[1754346226778,0.002,3728.9,3728.7,2.68189985]
[1754346226779,0.1336,3728.8,3728.7,2.68189985]
[1754346226979,4.2796,3728.8,3728.7,2.68189985]
[1754346227287,4.2796,3728.8,3728.6,2.68196735]
[1754346227478,4.146,3728.8,3728.4,2.68210641]
[1754346227822,0.1336,3728.6,3728.4,2.68209027]
[1754346228113,0.1336,3728.6,3728.5,2.68204371]
[1754346229006,0.1336,3728.6,3728.5,3.60364371]
[1754346229419,0.1336,3728.6,3728.5,2.68204371]
[1754346230906,0.1336,3728.6,3728.3,0.4739]
[1754346231236,0.1336,3728.6,3728.5,2.68204371]
[1754346231638,0.1336,3728.6,3728.5,3.15594371]
[1754346232135,0.1336,3728.6,3728.5,2.68204371]
[1754346233002,0.1336,3728.6,3727.9,0.4739]
[1754346233232,0.42816,3728.6,3728.3,2.68213515]
[1754346233442,0.1336,3728.4,3728.3,2.68213515]
[1754346233650,0.1336,3728.4,3728.2,2.68223921]
[1754346233802,4.145,3728.3,3728.2,2.68223921]
[1754346234644,4.145,3728.3,3728.2,3.60383921]
[1754346234943,4.145,3728.3,3728.2,4.23246344]
[1754346235248,0.1336,3728.7,3728.6,2.68192439]
[1754346235464,4.2786,3728.7,3728.3,2.68216336]
[1754346235635,0.4751,3728.6,3728.3,2.68216336]
[1754346235818,4.145,3728.7,3728.4,2.68211053]
[1754346236015,4.145,3728.7,3727.9,0.4739]
[1754346236016,4.145,3728.7,3728.0,2.68239382]
[1754346236262,0.1336,3728.3,3728.1,2.68233148]
[1754346236550,4.145,3728.2,3727.7,0.1336]
[1754346236762,4.145,3728.2,3728.1,2.68233148]
[1754346237742,4.145,3728.2,3728.1,3.60393148]
[1754346238340,4.145,3728.2,3728.1,2.68233148]
[1754346239236,4.145,3728.2,3728.1,0.001]
[1754346239439,4.145,3728.2,3728.1,2.68333148]
[1754346240206,4.145,3728.2,3728.1,3.60493148]
[1754346240407,4.145,3728.2,3728.1,4.5019132]
[1754346242547,4.145,3728.2,3728.1,3.5803132]
[1754346242851,4.2786,3728.2,3728.1,2.68333148]
[1754346243414,4.2786,3728.2,3728.1,3.15723148]
[1754346243621,4.145,3728.2,3728.1,3.60493148]
[1754346243811,4.145,3728.2,3728.1,4.51527231]
[1754346244254,4.145,3728.2,3728.1,4.64887231]
[1754346244424,4.145,3728.2,3728.1,4.20117231]
[1754346244744,4.145,3728.2,3728.1,2.68333148]
[1754346245145,4.145,3728.2,3728.1,0.001]
[1754346245343,4.145,3728.2,3728.1,2.68333148]
[1754346246324,4.145,3728.2,3728.1,3.15723148]
[1754346246543,4.145,3728.2,3728.1,3.60493148]
[1754346247812,4.145,3728.2,3728.1,4.23366605]
[1754346248017,4.2796,3728.6,3728.5,2.68204371]
[1754346248218,4.53068164,3728.6,3728.5,2.68204371]
[1754346248653,4.53068164,3728.6,3728.4,2.6820735]
[1754346248852,0.25108164,3728.5,3728.4,2.6820735]
[1754346249751,0.25108164,3728.5,3728.4,3.6036735]
[1754346250048,4.2796,3728.6,3728.5,2.68204371]
[1754346250360,4.146,3728.6,3728.5,3.60364371]
[1754346250661,4.39718349,3728.6,3728.5,3.60364371]
[1754346250962,4.146,3728.6,3728.5,2.68204371]
[1754346251276,4.39718127,3728.6,3728.5,3.60364371]
[1754346251418,4.39718127,3728.6,3728.5,2.68204371]
[1754346251814,4.39718127,3728.6,3728.2,0.1336]
[1754346252039,0.72628127,3728.5,3728.3,2.68212791]
[1754346252373,0.25124083,3728.4,3728.1,0.001]
[1754346252544,0.1336,3728.2,3728.1,0.001]
[1754346252898,6.39938777,3728.2,3728.1,0.001]
[1754346253212,11.66809396,3728.2,3728.1,0.001]
[1754346253377,16.00975582,3728.2,3728.1,0.001]
[1754346253538,46.00975582,3728.2,3728.1,0.001]
[1754346254092,44.39675582,3728.2,3728.1,0.001]
[1754346254377,44.26315582,3728.2,3728.1,0.001]
[1754346254535,44.46239752,3728.2,3728.1,0.001]
[1754346255240,40.31839752,3728.2,3728.1,0.001]
[1754346255440,44.26415582,3728.2,3728.1,0.001]
[1754346255656,14.26415582,3728.2,3728.1,0.001]
[1754346257938,13.35715582,3728.2,3728.1,0.001]
[1754346258748,9.21215582,3728.2,3728.1,0.001]
[1754346258969,10.62849396,3728.2,3728.1,0.001]
[1754346259373,10.62820429,3728.2,3728.1,0.001]
[1754346259879,4.39594476,3728.2,3728.1,0.001]
[1754346260081,7.39594476,3728.2,3728.1,0.001]
[1754346260285,4.39594476,3728.2,3728.1,0.465]
[1754346260983,4.39594476,3728.2,3728.1,0.001]
[1754346260984,7.39594476,3728.2,3728.1,0.001]
[1754346263287,10.07820429,3728.2,3728.1,0.001]
[1754346263860,12.27943749,3728.2,3728.1,0.001]
[1754346264168,12.82943749,3728.2,3728.1,0.001]
[1754346264573,42.82943749,3728.2,3728.1,0.001]
[1754346265285,41.90403431,3728.2,3728.1,0.001]
[1754346265485,42.39423431,3728.2,3728.1,0.001]
[1754346265867,41.90403431,3728.2,3728.1,0.001]
[1754346266455,42.39423431,3728.2,3728.1,0.001]
[1754346266994,42.82923431,3728.2,3728.1,0.001]
[1754346267378,42.39423431,3728.2,3728.1,0.001]
[1754346268178,42.82923431,3728.2,3728.1,0.001]
[1754346268483,41.90403431,3728.2,3728.1,0.001]
[1754346268686,40.62800111,3728.2,3728.1,0.001]
[1754346269889,30.25074158,3728.2,3728.1,0.001]
[1754346270052,0.25074158,3728.2,3728.1,0.9042]
[1754346270252,0.25074158,3728.5,3728.4,2.68211565]
[1754346270474,7.39474158,3728.5,3728.4,2.68211565]
[1754346270681,4.39474158,3728.5,3728.4,0.9032]
[1754346271287,7.39474158,3728.5,3728.4,0.9032]
[1754346273275,7.39474158,3728.5,3728.4,3.58531565]
[1754346273480,0.002,3728.6,3728.5,2.68204371]
[1754346273703,0.1356,3728.6,3728.5,3.58524371]
[1754346273866,4.146,3728.6,3728.5,3.58524371]
[1754346274066,4.146,3728.6,3728.5,4.28802661]
[1754346274882,4.39654744,3728.6,3728.5,4.28802661]
[1754346276971,4.39654744,3728.6,3728.5,4.42162661]
[1754346280001,4.39677465,3728.6,3728.5,4.42162661]
[1754346281180,4.146,3728.6,3728.5,4.42162661]
[1754346282507,4.146,3728.6,3728.5,4.28802661]
[1754346287590,0.002,3728.6,3728.5,4.42162661]
[1754346287811,1e-08,3728.8,3728.7,2.68189985]
[1754346288013,1e-08,3728.8,3728.7,4.07666307]
[1754346288216,1e-08,3728.8,3728.7,4.99836307]
[1754346288411,0.002,3729.0,3728.9,2.68175601]
[1754346288586,0.002,3729.0,3728.9,2.70173889]
[1754346288785,0.002,3729.0,3728.9,4.44823189]
[1754346288992,0.002,3729.0,3728.9,4.42824901]
[1754346289191,1e-08,3729.0,3728.9,4.42824901]
[1754346289428,1e-08,3729.0,3728.9,4.44823189]
[1754346290289,1e-08,3729.0,3728.9,4.42824901]
[1754346290490,1e-08,3729.0,3728.9,3.50654901]
[1754346290718,1e-08,3729.0,3728.9,4.42824901]
[1754346291990,1e-08,3729.0,3728.9,4.44823189]
[1754346292400,1e-08,3729.0,3728.9,8.59023189]
[1754346292724,1e-08,3729.3,3729.2,2.68154027]
[1754346293027,1e-08,3729.3,3729.2,4.06152042]
[1754346293203,1e-08,3729.3,3729.2,5.11682042]
[1754346294246,1e-08,3729.3,3729.2,2.81514027]
[1754346294450,1e-08,3729.3,3729.2,3.62321776]
[1754346294759,1e-08,3729.3,3729.2,3.60324027]
[1754346295162,1e-08,3729.3,3729.2,3.62321776]
[1754346297132,1e-08,3729.4,3729.3,2.68146837]
[1754346297332,1e-08,3729.4,3729.3,9.0568982]
[1754346298041,1e-08,3729.6,3729.5,2.68132457]
[1754346298264,1e-08,3729.9,3729.7,2.68118079]
[1754346298562,1e-08,3729.9,3729.8,2.6811089]
[1754346298773,1e-08,3729.9,3729.8,2.7010756]
[1754346298942,1e-08,3729.9,3729.8,5.12325981]
[1754346300294,1e-08,3729.9,3729.8,4.20155981]
[1754346300436,0.94640001,3729.9,3729.8,2.6811089]
[1754346300632,0.94640001,3729.9,3729.6,2.68124491]
[1754346300857,1e-08,3729.9,3728.7,4.14]
[1754346301042,1e-08,3729.9,3729.8,2.6811089]
[1754346301444,0.48840001,3729.9,3729.7,2.68113811]
[1754346301655,0.9464,3729.8,3729.6,2.68123829]
[1754346301858,1e-08,3729.9,3729.8,2.6811089]
[1754346302234,1e-08,3729.9,3729.8,3.21733787]
[1754346302434,1e-08,3729.9,3729.8,4.15900457]
[1754346302846,1e-08,3729.9,3729.8,4.13903787]
[1754346304346,1e-08,3729.9,3729.8,4.27263787]
[1754346304582,1e-08,3729.9,3729.8,4.29260457]
[1754346305680,1e-08,3730.2,3730.1,5.68089327]
[1754346305967,1e-08,3730.2,3730.1,11.07298087]
[1754346306166,1e-08,3730.2,3730.1,12.54468087]
[1754346306576,1e-08,3730.2,3730.1,12.67828087]
[1754346306867,1e-08,3730.2,3730.1,12.12828087]
[1754346308039,1e-08,3730.2,3730.1,7.98828087]
[1754346308244,1e-08,3730.2,3730.1,7.55488087]
[1754346308475,1e-08,3730.2,3730.1,12.12828087]
[1754346308869,1e-08,3730.2,3730.1,11.20658087]
[1754346309400,1e-08,3730.2,3730.1,4.06658087]
[1754346309566,1e-08,3730.2,3730.1,5.00824219]
[1754346309768,1e-08,3730.2,3730.1,4.98828087]
[1754346310010,1e-08,3730.2,3730.1,4.55488087]
[1754346310205,1e-08,3730.2,3730.1,4.98828087]
[1754346310369,1e-08,3730.2,3730.1,8.00824219]
[1754346310568,1e-08,3730.2,3730.1,7.98828087]
[1754346311093,1e-08,3730.2,3730.1,9.12828087]
[1754346311874,1e-08,3730.2,3730.1,12.12828087]
[1754346313697,6.437,3732.6,3730.2,3.55]
[1754346314005,0.9464,3732.5,3732.3,2.6793056]
[1754346314170,6.437,3732.6,3732.4,2.67924123]
[1754346314675,0.1336,3732.4,3731.7,0.1336]
[1754346314875,0.4884,3732.3,3732.2,2.67938481]
[1754346315077,1.6981,3732.3,3730.2,1.64622809]
[1754346315282,0.1336,3731.9,3731.6,2.67977409]
[1754346315494,0.9464,3731.8,3731.6,2.67977409]
[1754346315676,0.9464,3731.7,3731.6,2.67977409]
[1754346316093,0.9464,3731.7,3731.5,2.67986346]
[1754346316295,6.82339156,3732.2,3730.6,4.143]
[1754346316296,0.9464,3731.6,3730.6,4.143]
[1754346316610,0.1336,3731.4,3730.8,0.1336]
[1754346316819,0.465,3731.3,3730.8,0.1336]
[1754346317021,0.4692,3731.2,3730.9,2.68025748]
[1754346317332,0.9342,3731.1,3730.9,2.68025748]
[1754346317476,0.9342,3731.0,3729.9,2.68100266]
[1754346317678,3.0,3732.1,3730.5,2.68053616]
[1754346317679,0.9342,3730.9,3730.5,2.68053616]
[1754346317872,0.9342,3730.8,3730.5,2.68053616]
[1754346318115,6.8241527,3731.2,3730.5,2.68053616]
[1754346318287,0.7134,3730.7,3730.5,2.68053616]
[1754346318612,0.1336,3730.7,3730.6,2.68053396]
[1754346319213,0.5986,3730.7,3730.6,2.68053396]
[1754346319386,0.7134,3730.7,3730.3,2.68074953]
[1754346319601,0.5798,3730.6,3730.5,2.68055251]
[1754346319797,0.1336,3730.7,3730.6,2.68053396]
[1754346319981,0.7134,3730.7,3730.6,2.68053396]
[1754346321308,0.1336,3730.7,3730.6,2.68053396]
[1754346321883,4.144,3731.2,3731.1,2.68017474]
[1754346322086,4.609,3731.2,3731.1,2.68017474]
[1754346322428,5.49618,3731.2,3730.5,0.1336]
[1754346322577,0.1336,3730.9,3730.3,2.68074953]
[1754346322782,0.5986,3730.9,3730.8,2.68039026]
[1754346323312,0.5986,3730.9,3730.2,0.1336]
[1754346323313,0.816,3730.9,3730.7,2.68045512]
[1754346323527,0.1336,3730.7,3730.6,2.68051951]
[1754346323727,0.5986,3730.7,3730.6,2.68051951]
[1754346324124,0.816,3730.7,3730.4,2.68063488]
[1754346324423,0.6824,3730.6,3730.5,2.68059186]
[1754346324626,0.465,3730.9,3730.5,2.68059186]
[1754346324826,0.465,3730.8,3730.7,2.68045202]
[1754346325618,0.71530936,3731.1,3730.7,2.68045202]
[1754346325822,0.1336,3730.7,3730.6,2.68051953]
[1754346325999,0.6824,3730.7,3730.5,2.68060559]
[1754346326524,0.465,3730.7,3730.5,2.68060559]
[1754346326704,0.465,3730.6,3730.5,2.68060559]
[1754346327629,0.465,3730.6,3730.3,0.001]
[1754346327630,0.1336,3730.5,3730.3,0.001]
[1754346327819,9.85318614,3730.4,3730.3,0.001]
[1754346328021,11.9062957,3730.4,3730.3,0.001]
[1754346328223,43.17601163,3730.4,3730.3,0.001]
[1754346328814,54.58901651,3730.4,3730.3,0.001]
[1754346329513,54.33850058,3730.4,3730.3,0.001]
[1754346329744,54.58889223,3730.4,3730.3,0.001]
[1754346330426,54.58889223,3730.4,3730.3,1e-08]
[1754346330626,2.68139647,3729.4,3729.3,0.001]
[1754346330874,10.39318465,3729.4,3729.3,0.001]
[1754346331048,11.2938672,3729.4,3729.3,0.001]
[1754346331415,3.53627073,3729.4,3729.3,0.001]
[1754346331622,7.141,3729.4,3729.3,0.001]
[1754346332017,10.75659647,3729.4,3729.3,0.001]
[1754346332249,7.141,3729.4,3729.3,0.001]
[1754346333551,9.82239647,3729.4,3729.3,0.001]
[1754346333752,11.78533612,3729.4,3729.3,0.001]
[1754346334078,12.58523052,3729.4,3729.3,0.001]
[1754346334562,12.33533612,3729.4,3729.3,0.001]
[1754346336258,11.86613612,3729.4,3729.3,0.001]
[1754346336762,12.33533612,3729.4,3729.3,0.001]
[1754346337963,11.86613612,3729.4,3729.3,0.001]
[1754346338266,11.40113612,3729.4,3729.3,0.001]
[1754346338923,12.46829381,3729.4,3729.3,0.001]
[1754346340331,11.53409381,3729.4,3729.3,0.001]
[1754346343156,11.40113612,3729.4,3729.3,0.001]
[1754346343391,4.141,3729.4,3729.3,0.9558]
[1754346343699,4.141,3729.4,3729.3,0.001]
[1754346343999,11.30659647,3729.4,3729.3,0.001]
[1754346344349,41.30659647,3729.4,3729.3,0.001]
[1754346344684,40.62161765,3729.4,3729.3,0.001]
[1754346344852,44.03525833,3729.4,3729.3,0.001]
[1754346345053,44.28447889,3729.4,3729.3,0.001]
[1754346345261,14.28447889,3729.4,3729.3,0.001]
[1754346345464,14.03525833,3729.4,3729.3,0.001]
[1754346345778,13.10105833,3729.4,3729.3,0.001]
[1754346345972,10.37239647,3729.4,3729.3,0.001]
[1754346346166,10.83739647,3729.4,3729.3,0.001]
[1754346346379,11.30659647,3729.4,3729.3,0.001]
[1754346346567,41.30659647,3729.4,3729.3,0.001]
[1754346347887,41.55614628,3729.4,3729.3,0.001]
[1754346348063,44.28480814,3729.4,3729.3,0.001]
[1754346348862,43.35060814,3729.4,3729.3,0.001]
[1754346349804,39.20960814,3729.4,3729.3,0.001]
[1754346349954,4.39154981,3729.4,3729.3,0.9264]
[1754346350165,7.39154981,3729.4,3729.3,0.001]
[1754346350472,4.39154981,3729.4,3729.3,0.9264]
[1754346350653,1.67092046,3730.0,3729.3,0.9264]
[1754346350654,2.68113608,3729.8,3729.3,0.9264]
[1754346350862,7.39169338,3729.7,3729.4,0.9254]
[1754346351206,7.39169338,3729.7,3729.5,0.9254]
[1754346351207,0.24969338,3729.6,3729.5,0.9254]
[1754346351699,2.93094606,3729.6,3729.5,0.9254]
[1754346351860,0.24969338,3729.6,3729.5,0.9254]
[1754346352408,2.93094606,3729.6,3729.5,0.474]
[1754346352570,5.68139647,3729.4,3729.3,0.001]
[1754346352776,7.39169338,3729.4,3729.3,0.001]
[1754346352964,7.39169338,3729.4,3729.3,0.9264]
[1754346353687,7.142,3729.4,3729.3,0.9264]
[1754346354469,10.0736118,3729.4,3729.3,0.001]
[1754346354796,7.39221533,3729.4,3729.3,0.001]
[1754346355092,10.0736118,3729.4,3729.3,0.475]
[1754346355481,7.39221533,3729.4,3729.3,0.475]
[1754346355684,7.39221533,3729.4,3729.3,0.9264]
[1754346356384,10.0736118,3729.4,3729.3,0.001]
[1754346356983,10.6236118,3729.4,3729.3,0.001]
[1754346358794,11.1190118,3729.4,3729.3,0.001]
[1754346359309,10.6236118,3729.4,3729.3,0.001]
[1754346359593,11.1190118,3729.4,3729.3,0.001]
[1754346359792,12.97153952,3729.4,3729.3,0.001]
[1754346360494,42.97153952,3729.4,3729.3,0.001]
[1754346363298,6.23197178,3728.6,3728.5,0.001]
[1754346363600,3.23225953,3728.2,3728.1,0.001]
[1754346363796,3.0,3728.0,3727.3,0.001]
[1754346364001,3.0,3728.0,3727.7,1e-08]
[1754346364002,17.64555222,3727.8,3727.7,1e-08]
[1754346364164,3.23283522,3727.4,3727.3,0.001]
[1754346364364,41.28086951,3727.4,3727.3,1e-08]
[1754346364562,37.10633407,3727.4,3727.3,1e-08]
[1754346365005,11.24733407,3727.4,3727.3,1e-08]
[1754346365580,6.48305055,3727.4,3727.3,0.47400001]
[1754346365894,7.39121533,3727.4,3727.3,0.92540001]
[1754346366502,7.39221533,3727.4,3727.3,0.92540001]
[1754346366704,7.39221533,3727.4,3727.3,1e-08]
[1754346367202,40.62505055,3727.4,3727.3,1e-08]
[1754346367404,43.35371241,3727.4,3727.3,1e-08]
[1754346368301,40.67087719,3727.4,3727.3,1e-08]
[1754346368474,43.35371241,3727.4,3727.3,1e-08]
[1754346369402,39.21171241,3727.4,3727.3,0.47400001]
[1754346369610,43.35471241,3727.4,3727.3,0.92540001]
[1754346369780,43.35471241,3727.4,3727.3,1e-08]
[1754346370481,7.39321533,3727.4,3727.3,0.92540001]
[1754346370673,3.25021533,3727.4,3727.3,0.92540001]
[1754346370871,3.25021533,3727.4,3727.3,3.6083072]
[1754346370872,0.25021533,3727.4,3727.3,3.6083072]
[1754346371214,4.143,3727.4,3727.3,3.6083072]
[1754346372174,7.143,3727.4,3727.3,0.92540001]
[1754346372386,10.79007195,3727.4,3727.3,1e-08]
[1754346373113,10.79007195,3727.4,3727.3,0.92540001]
[1754346373431,7.39293673,3727.4,3727.3,0.92540001]
[1754346376620,7.39282936,3727.4,3727.3,0.92540001]
[1754346378427,0.24982936,3727.4,3727.3,0.92540001]
[1754346378713,4.2766,3727.4,3727.3,3.6083072]
[1754346379886,4.2766,3727.4,3727.3,3.6060072]
[1754346381500,4.2766,3727.4,3727.3,0.92310001]
[1754346381683,4.2766,3727.4,3727.3,1e-08]
[1754346383117,4.2766,3727.4,3727.3,0.92310001]
[1754346383287,4.2766,3727.4,3727.3,3.6060072]
[1754346387048,4.2766,3727.4,3727.3,4.23511209]
[1754346387608,4.143,3727.4,3727.3,4.23511209]
[1754346388245,0.1336,3727.6,3727.5,2.68276324]
[1754346388443,4.2766,3727.6,3727.5,2.68276324]
[1754346388641,4.2766,3727.6,3727.5,3.60586324]
[1754346390751,4.2766,3727.6,3727.5,4.29775077]
[1754346391340,4.2756,3727.6,3727.5,4.29775077]
[1754346392282,4.142,3727.6,3727.5,4.29775077]
[1754346393321,4.142,3727.6,3727.5,3.60586324]
[1754346394448,4.2756,3727.6,3727.3,1e-08]
[1754346394643,4.2756,3727.6,3727.3,2.68286305]
[1754346394827,4.2756,3727.6,3727.4,2.6828268]
[1754346395363,4.2756,3727.6,3727.5,2.68276324]
[1754346395729,4.2756,3727.6,3727.5,3.13776324]
[1754346396243,4.2756,3727.6,3727.5,3.60586324]
[1754346397029,4.2756,3727.6,3727.3,1e-08]
[1754346397236,3.6408148,3727.5,3727.3,1e-08]
[1754346397547,2.96724772,3727.4,3727.3,1e-08]
[1754346397849,3.67437066,3727.4,3727.3,1e-08]
[1754346398062,3.92526212,3727.4,3727.3,1e-08]
[1754346398375,0.25089146,3727.4,3727.3,1e-08]
[1754346398973,0.25089146,3727.5,3727.3,0.92310001]
[1754346399272,4.142,3727.6,3727.4,0.9231]
[1754346399474,0.25095956,3727.5,3727.3,1e-08]
[1754346399675,0.25095852,3727.4,3727.3,0.45500001]
[1754346399985,0.25095852,3727.4,3727.3,2.6829072]
[1754346400315,0.25095852,3727.4,3727.3,0.92310001]
[1754346400517,6.85708959,3727.4,3727.3,1e-08]
[1754346400691,7.33108959,3727.4,3727.3,1e-08]
[1754346400889,7.88108959,3727.4,3727.3,1e-08]
[1754346402886,6.92308959,3727.4,3727.3,1e-08]
[1754346403220,7.50608959,3727.4,3727.3,1e-08]
[1754346403391,7.40708959,3727.4,3727.3,1e-08]
[1754346404122,6.92308959,3727.4,3727.3,1e-08]